[Event "Titled Tuesday Blitz March 21 Late 2023"]
[White "Martinez Alcantara, Jose Eduardo"]
[Black "Timofeev, Artyom"]
[WhiteFideId "3805662"]
[BlackFideId "4140419"]
[WhiteElo "2712"]
[BlackElo "2586"]
[Result "1-0"]
[Round "09"]
[TimeControl "180+2"]
[Date "2023.03.21"]
[WhiteClock "0:01:00"]
[BlackClock "0:00:20"]

1. e4 {[%clk 0:03:00]}  c5 {[%clk 0:02:58]} 2. Nf3 {[%clk 0:03:01]}  Nc6 {[%clk 0:02:58]} 3. c3 {[%clk 0:03:02]}  Nf6 {[%clk 0:02:56]} 4. Bd3 {[%clk 0:03:01]}  d5 {[%clk 0:02:51]} 5. e5 {[%clk 0:03:01]}  Nd7 {[%clk 0:02:51]} 6. Bb5 {[%clk 0:03:02]}  e6 {[%clk 0:02:50]} 7. d4 {[%clk 0:03:01]}  Be7 {[%clk 0:02:47]} 8. O-O {[%clk 0:03:01]}  O-O {[%clk 0:02:47]} 9. a3 {[%clk 0:03:01]}  cxd4 {[%clk 0:02:45]} 10. cxd4 {[%clk 0:03:02]}  f6 {[%clk 0:02:44]} 11. exf6 {[%clk 0:03:02]}  Bxf6 {[%clk 0:02:43]} 12. Nc3 {[%clk 0:03:01]}  Qb6 {[%clk 0:02:42]} 13. Be3 {[%clk 0:02:58]}  a6 {[%clk 0:02:39]} 14. Bxc6 {[%clk 0:02:58]}  Qxc6 {[%clk 0:02:39]} 15. Rc1 {[%clk 0:02:57]}  Qd6 {[%clk 0:02:31]} 16. Qd2 {[%clk 0:02:57]}  Be7 {[%clk 0:02:24]} 17. Rfe1 {[%clk 0:02:45]}  Nb6 {[%clk 0:01:55]} 18. Bg5 {[%clk 0:02:17]}  Bxg5 {[%clk 0:01:52]} 19. Qxg5 {[%clk 0:02:15]}  Nc4 {[%clk 0:01:51]} 20. Re2 {[%clk 0:01:54]}  Bd7 {[%clk 0:01:50]} 21. Rce1 {[%clk 0:01:54]}  Rac8 {[%clk 0:01:45]} 22. Ne5 {[%clk 0:01:44]}  Nxe5 {[%clk 0:01:40]} 23. Rxe5 {[%clk 0:01:45]}  Rc4 {[%clk 0:01:28]} 24. Qd2 {[%clk 0:01:40]}  Rfc8 {[%clk 0:01:22]} 25. h4 {[%clk 0:01:33]}  Qb6 {[%clk 0:01:22]} 26. Rd1 {[%clk 0:01:31]}  h6 {[%clk 0:01:19]} 27. h5 {[%clk 0:01:29]}  Be8 {[%clk 0:01:16]} 28. g4 {[%clk 0:01:24]}  Ba4 {[%clk 0:01:06]} 29. Nxa4 {[%clk 0:01:13]}  Rxa4 {[%clk 0:01:06]} 30. Qe3 {[%clk 0:01:08]}  Rc6 {[%clk 0:00:54]} 31. g5 {[%clk 0:01:07]}  hxg5 {[%clk 0:00:51]} 32. Rxg5 {[%clk 0:01:06]}  Rac4 {[%clk 0:00:22]} 33. h6 {[%clk 0:01:03]}  Rc7 {[%clk 0:00:20]} 34. Qe5 {[%clk 0:01:00]} 1-0


[Site "https://www.chess.com"]

[Event "Titled Tuesday Blitz March 21 Late 2023"]
[White "Urazayev, Arystanbek"]
[Black "Hansen, Eric"]
[WhiteFideId "13709810"]
[BlackFideId "2606771"]
[WhiteElo "2479"]
[BlackElo "2569"]
[Result "1-0"]
[Round "09"]
[TimeControl "180+2"]
[Date "2023.03.21"]
[WhiteClock "0:00:29"]
[BlackClock "0:00:01"]

1. e4 {[%clk 0:03:00]}  e5 {[%clk 0:03:00]} 2. Nf3 {[%clk 0:03:01]}  Nc6 {[%clk 0:03:00]} 3. Bb5 {[%clk 0:03:01]}  Qf6 {[%clk 0:03:00]} 4. d4 {[%clk 0:02:59]}  exd4 {[%clk 0:02:47]} 5. O-O {[%clk 0:02:57]}  a6 {[%clk 0:02:45]} 6. Ba4 {[%clk 0:02:51]}  Bc5 {[%clk 0:02:36]} 7. e5 {[%clk 0:02:49]}  Qg6 {[%clk 0:02:23]} 8. Re1 {[%clk 0:02:41]}  Nh6 {[%clk 0:02:05]} 9. Nbd2 {[%clk 0:02:24]}  Ba7 {[%clk 0:01:56]} 10. Ne4 {[%clk 0:02:18]}  Nf5 {[%clk 0:01:47]} 11. h3 {[%clk 0:02:08]}  b5 {[%clk 0:01:14]} 12. Bb3 {[%clk 0:02:08]}  Na5 {[%clk 0:01:14]} 13. Nd6+ {[%clk 0:01:20]}  cxd6 {[%clk 0:01:04]} 14. exd6+ {[%clk 0:01:20]}  Kf8 {[%clk 0:01:02]} 15. Ne5 {[%clk 0:01:17]}  Qf6 {[%clk 0:00:50]} 16. Bd5 {[%clk 0:01:05]}  Nxd6 {[%clk 0:00:17]} 17. Bxa8 {[%clk 0:01:01]}  h5 {[%clk 0:00:15]} 18. Qf3 {[%clk 0:00:48]}  Nac4 {[%clk 0:00:13]} 19. Nd3 {[%clk 0:00:35]}  Qxf3 {[%clk 0:00:05]} 20. Bxf3 {[%clk 0:00:35]}  g6 {[%clk 0:00:05]} 21. b3 {[%clk 0:00:35]}  Na5 {[%clk 0:00:03]} 22. Ba3 {[%clk 0:00:35]}  Bb8 {[%clk 0:00:03]} 23. Bc5 {[%clk 0:00:33]}  Nc6 {[%clk 0:00:01]} 24. Bxc6 {[%clk 0:00:33]}  dxc6 {[%clk 0:00:02]} 25. Bxd4 {[%clk 0:00:34]}  Rg8 {[%clk 0:00:02]} 26. Rad1 {[%clk 0:00:30]}  Nf5 {[%clk 0:00:02]} 27. Bf6 {[%clk 0:00:31]}  Ba7 {[%clk 0:00:01]} 28. Nc5 {[%clk 0:00:29]}  Bb6 {[%clk 0:00:01]} 29. b4 {[%clk 0:00:29]} 1-0


[Site "https://www.chess.com"]

[Event "Titled Tuesday Blitz March 21 Late 2023"]
[White "O`Gorman, Tom"]
[Black "Raja Rithvik R"]
[WhiteFideId "2508249"]
[BlackFideId "35007394"]
[WhiteElo "2271"]
[BlackElo "2402"]
[Result "0-1"]
[Round "09"]
[TimeControl "180+2"]
[Date "2023.03.21"]
[WhiteClock "0:01:31"]
[BlackClock "0:01:41"]

1. d4 {[%clk 0:03:00]}  Nf6 {[%clk 0:02:52]} 2. c4 {[%clk 0:02:58]}  e6 {[%clk 0:02:52]} 3. Nf3 {[%clk 0:02:57]}  d5 {[%clk 0:02:52]} 4. Nc3 {[%clk 0:02:56]}  a6 {[%clk 0:02:52]} 5. cxd5 {[%clk 0:02:50]}  exd5 {[%clk 0:02:53]} 6. Bg5 {[%clk 0:02:49]}  Be6 {[%clk 0:02:49]} 7. e3 {[%clk 0:02:48]}  Nbd7 {[%clk 0:02:48]} 8. Bd3 {[%clk 0:02:48]}  Bd6 {[%clk 0:02:48]} 9. O-O {[%clk 0:02:43]}  O-O {[%clk 0:02:49]} 10. e4 {[%clk 0:02:42]}  dxe4 {[%clk 0:02:43]} 11. Nxe4 {[%clk 0:02:43]}  Be7 {[%clk 0:02:43]} 12. Qe2 {[%clk 0:02:42]}  Re8 {[%clk 0:02:39]} 13. Bh4 {[%clk 0:02:25]}  h6 {[%clk 0:02:27]} 14. Rfe1 {[%clk 0:02:14]}  Nd5 {[%clk 0:02:20]} 15. Bxe7 {[%clk 0:02:10]}  Qxe7 {[%clk 0:02:21]} 16. Qd2 {[%clk 0:02:07]}  Rad8 {[%clk 0:02:16]} 17. Rac1 {[%clk 0:02:07]}  c6 {[%clk 0:02:14]} 18. Nc5 {[%clk 0:02:01]}  Nxc5 {[%clk 0:02:13]} 19. dxc5 {[%clk 0:01:59]}  Qf6 {[%clk 0:02:11]} 20. Bb1 {[%clk 0:01:49]}  Nf4 {[%clk 0:01:57]} 21. Qb4 {[%clk 0:01:48]}  Bd5 {[%clk 0:01:52]} 22. Be4 {[%clk 0:01:41]}  Bxe4 {[%clk 0:01:43]} 23. Rxe4 {[%clk 0:01:42]}  Nd3 {[%clk 0:01:44]} 24. Rxe8+ {[%clk 0:01:32]}  Rxe8 {[%clk 0:01:45]} 25. Qc3 {[%clk 0:01:31]}  Nxc1 {[%clk 0:01:43]} 26. Qxc1 {[%clk 0:01:31]}  Re2 {[%clk 0:01:41]} 0-1


[Site "https://www.chess.com"]

[Event "Titled Tuesday Blitz March 21 Late 2023"]
[White "Bartel, Mateusz"]
[Black "Taboas Rodriguez, Daniel"]
[WhiteFideId "1112635"]
[BlackFideId "2208466"]
[WhiteElo "2521"]
[BlackElo "2365"]
[Result "1-0"]
[Round "09"]
[TimeControl "180+2"]
[Date "2023.03.21"]
[WhiteClock "0:00:04"]
[BlackClock "0:00:11"]

1. e4 {[%clk 0:03:00]}  e5 {[%clk 0:02:57]} 2. f4 {[%clk 0:02:58]}  Nc6 {[%clk 0:02:56]} 3. Nf3 {[%clk 0:02:57]}  f5 {[%clk 0:02:57]} 4. d4 {[%clk 0:02:40]}  fxe4 {[%clk 0:02:55]} 5. Nxe5 {[%clk 0:02:39]}  Nf6 {[%clk 0:02:56]} 6. Bc4 {[%clk 0:02:33]}  d5 {[%clk 0:02:53]} 7. Be2 {[%clk 0:02:29]}  Bd6 {[%clk 0:02:45]} 8. O-O {[%clk 0:02:25]}  O-O {[%clk 0:02:45]} 9. c3 {[%clk 0:02:19]}  Ne7 {[%clk 0:02:43]} 10. Na3 {[%clk 0:02:12]}  c6 {[%clk 0:02:42]} 11. Nc2 {[%clk 0:02:12]}  Qe8 {[%clk 0:02:38]} 12. Ne3 {[%clk 0:02:11]}  h5 {[%clk 0:02:37]} 13. Bd2 {[%clk 0:02:04]}  Nf5 {[%clk 0:02:37]} 14. Qe1 {[%clk 0:01:57]}  Be6 {[%clk 0:02:36]} 15. Nxf5 {[%clk 0:01:52]}  Bxf5 {[%clk 0:02:36]} 16. Qh4 {[%clk 0:01:53]}  g6 {[%clk 0:02:33]} 17. h3 {[%clk 0:01:42]}  Be7 {[%clk 0:02:28]} 18. Qg3 {[%clk 0:01:39]}  Kh7 {[%clk 0:02:23]} 19. Be3 {[%clk 0:01:37]}  Nd7 {[%clk 0:02:08]} 20. Qh2 {[%clk 0:01:17]}  Nxe5 {[%clk 0:02:06]} 21. fxe5 {[%clk 0:01:16]}  h4 {[%clk 0:01:58]} 22. Qf4 {[%clk 0:00:59]}  Kg8 {[%clk 0:01:33]} 23. Bg4 {[%clk 0:00:52]}  g5 {[%clk 0:01:28]} 24. Qxf5 {[%clk 0:00:52]}  Rxf5 {[%clk 0:01:28]} 25. Rxf5 {[%clk 0:00:52]}  Qg6 {[%clk 0:01:24]} 26. Raf1 {[%clk 0:00:49]}  Rf8 {[%clk 0:01:24]} 27. Rxf8+ {[%clk 0:00:39]}  Bxf8 {[%clk 0:01:25]} 28. Rf6 {[%clk 0:00:36]}  Qg7 {[%clk 0:01:22]} 29. Be6+ {[%clk 0:00:34]}  Kh8 {[%clk 0:01:20]} 30. Rf7 {[%clk 0:00:32]}  Qh6 {[%clk 0:01:19]} 31. Rf6 {[%clk 0:00:31]}  Qg7 {[%clk 0:01:16]} 32. Rf7 {[%clk 0:00:31]}  Qh6 {[%clk 0:01:16]} 33. Bf5 {[%clk 0:00:31]}  Bg7 {[%clk 0:01:10]} 34. Rxb7 {[%clk 0:00:30]}  Kg8 {[%clk 0:01:05]} 35. Rb8+ {[%clk 0:00:26]}  Kf7 {[%clk 0:01:04]} 36. e6+ {[%clk 0:00:25]}  Kf6 {[%clk 0:01:01]} 37. Bg4 {[%clk 0:00:25]}  Bf8 {[%clk 0:00:53]} 38. Rc8 {[%clk 0:00:21]}  Bd6 {[%clk 0:00:50]} 39. Rxc6 {[%clk 0:00:21]}  Qf8 {[%clk 0:00:51]} 40. c4 {[%clk 0:00:20]}  Bf4 {[%clk 0:00:50]} 41. Bxf4 {[%clk 0:00:16]}  gxf4 {[%clk 0:00:51]} 42. cxd5 {[%clk 0:00:14]}  Qb4 {[%clk 0:00:50]} 43. d6 {[%clk 0:00:13]}  Qe1+ {[%clk 0:00:35]} 44. Kh2 {[%clk 0:00:14]}  Qg3+ {[%clk 0:00:36]} 45. Kh1 {[%clk 0:00:14]}  f3 {[%clk 0:00:36]} 46. gxf3 {[%clk 0:00:10]}  exf3 {[%clk 0:00:37]} 47. Rc2 {[%clk 0:00:10]}  f2 {[%clk 0:00:32]} 48. Rxf2+ {[%clk 0:00:10]}  Qxf2 {[%clk 0:00:33]} 49. e7 {[%clk 0:00:09]}  Qe1+ {[%clk 0:00:30]} 50. Kg2 {[%clk 0:00:09]}  Kg5 {[%clk 0:00:30]} 51. Kf3 {[%clk 0:00:09]}  Kf6 {[%clk 0:00:26]} 52. Kf4 {[%clk 0:00:09]}  Qf2+ {[%clk 0:00:23]} 53. Ke4 {[%clk 0:00:09]}  Qc2+ {[%clk 0:00:23]} 54. Kd5 {[%clk 0:00:09]}  Qxb2 {[%clk 0:00:24]} 55. e8=Q {[%clk 0:00:08]}  Qxa2+ {[%clk 0:00:24]} 56. Kc5 {[%clk 0:00:07]}  Qa3+ {[%clk 0:00:24]} 57. Kc4 {[%clk 0:00:07]}  Qa2+ {[%clk 0:00:25]} 58. Kb4 {[%clk 0:00:07]}  Qb2+ {[%clk 0:00:25]} 59. Ka5 {[%clk 0:00:07]}  Qc3+ {[%clk 0:00:24]} 60. Ka6 {[%clk 0:00:07]}  Qa3+ {[%clk 0:00:22]} 61. Kb7 {[%clk 0:00:07]}  Qxd6 {[%clk 0:00:22]} 62. Qe4 {[%clk 0:00:05]}  Qb6+ {[%clk 0:00:20]} 63. Ka8 {[%clk 0:00:06]}  a5 {[%clk 0:00:19]} 64. Qe5+ {[%clk 0:00:05]}  Kf7 {[%clk 0:00:18]} 65. Bh5+ {[%clk 0:00:04]}  Kf8 {[%clk 0:00:18]} 66. Qf5+ {[%clk 0:00:04]}  Kg7 {[%clk 0:00:18]} 67. Qe5+ {[%clk 0:00:04]}  Kh6 {[%clk 0:00:18]} 68. Bg4 {[%clk 0:00:04]}  Qc6+ {[%clk 0:00:13]} 69. Ka7 {[%clk 0:00:03]}  a4 {[%clk 0:00:11]} 70. Qh8+ {[%clk 0:00:03]}  Kg5 {[%clk 0:00:11]} 71. Qh5+ {[%clk 0:00:03]}  Kf4 {[%clk 0:00:11]} 72. Qe5# {[%clk 0:00:04]} 1-0


[Site "https://www.chess.com"]

[Event "Titled Tuesday Blitz March 21 Late 2023"]
[White "Holt, Conrad"]
[Black "Papp, Levente"]
[WhiteFideId "2034387"]
[BlackFideId "751243"]
[WhiteElo "2592"]
[BlackElo "2380"]
[Result "1-0"]
[Round "09"]
[TimeControl "180+2"]
[Date "2023.03.21"]
[WhiteClock "0:00:33"]
[BlackClock "0:00:02"]

1. d4 {[%clk 0:03:00]}  e6 {[%clk 0:02:55]} 2. c4 {[%clk 0:03:00]}  Nf6 {[%clk 0:02:54]} 3. Nc3 {[%clk 0:03:00]}  Bb4 {[%clk 0:02:53]} 4. Qc2 {[%clk 0:03:00]}  O-O {[%clk 0:02:47]} 5. e4 {[%clk 0:02:59]}  d6 {[%clk 0:02:46]} 6. Bd3 {[%clk 0:02:56]}  c5 {[%clk 0:02:44]} 7. a3 {[%clk 0:02:40]}  Bxc3+ {[%clk 0:02:41]} 8. bxc3 {[%clk 0:02:40]}  e5 {[%clk 0:02:35]} 9. Ne2 {[%clk 0:02:40]}  Nc6 {[%clk 0:02:31]} 10. d5 {[%clk 0:02:38]}  Na5 {[%clk 0:02:31]} 11. O-O {[%clk 0:02:36]}  b6 {[%clk 0:02:28]} 12. Ng3 {[%clk 0:02:35]}  Ba6 {[%clk 0:02:27]} 13. f4 {[%clk 0:02:33]}  Nd7 {[%clk 0:02:12]} 14. Nf5 {[%clk 0:02:31]}  Qc7 {[%clk 0:01:44]} 15. Rf3 {[%clk 0:02:22]}  g6 {[%clk 0:01:34]} 16. Nh6+ {[%clk 0:02:18]}  Kh8 {[%clk 0:01:33]} 17. f5 {[%clk 0:02:18]}  Bxc4 {[%clk 0:01:16]} 18. Bxc4 {[%clk 0:02:13]}  Nxc4 {[%clk 0:01:16]} 19. Qe2 {[%clk 0:02:13]}  b5 {[%clk 0:01:14]} 20. a4 {[%clk 0:02:06]}  Na5 {[%clk 0:00:52]} 21. axb5 {[%clk 0:01:59]}  Nb3 {[%clk 0:00:52]} 22. Rb1 {[%clk 0:02:00]}  Nxc1 {[%clk 0:00:52]} 23. Rxc1 {[%clk 0:02:00]}  c4 {[%clk 0:00:53]} 24. fxg6 {[%clk 0:01:54]}  fxg6 {[%clk 0:00:52]} 25. Nf7+ {[%clk 0:01:54]}  Kg7 {[%clk 0:00:47]} 26. Ng5 {[%clk 0:01:49]}  Nc5 {[%clk 0:00:38]} 27. Qxc4 {[%clk 0:01:27]}  Rxf3 {[%clk 0:00:38]} 28. Nxf3 {[%clk 0:01:27]}  Rf8 {[%clk 0:00:34]} 29. Ra1 {[%clk 0:01:15]}  Qb6 {[%clk 0:00:31]} 30. Kh1 {[%clk 0:01:14]}  Rf4 {[%clk 0:00:31]} 31. Ng5 {[%clk 0:01:03]}  Qc7 {[%clk 0:00:19]} 32. g3 {[%clk 0:00:51]}  Rf6 {[%clk 0:00:15]} 33. Ne6+ {[%clk 0:00:38]}  Nxe6 {[%clk 0:00:06]} 34. Qxc7+ {[%clk 0:00:39]}  Nxc7 {[%clk 0:00:07]} 35. Rxa7 {[%clk 0:00:39]}  Rf7 {[%clk 0:00:08]} 36. b6 {[%clk 0:00:39]}  Na6 {[%clk 0:00:01]} 37. Rxa6 {[%clk 0:00:39]}  Kh6 {[%clk 0:00:01]} 38. Ra7 {[%clk 0:00:38]}  Rf1+ {[%clk 0:00:01]} 39. Kg2 {[%clk 0:00:37]}  Rb1 {[%clk 0:00:02]} 40. b7 {[%clk 0:00:36]}  Kg5 {[%clk 0:00:02]} 41. Kf3 {[%clk 0:00:34]}  h5 {[%clk 0:00:01]} 42. h4+ {[%clk 0:00:33]}  Kf6 {[%clk 0:00:02]} 43. Ke2 {[%clk 0:00:33]} 1-0


[Site "https://www.chess.com"]

[Event "Titled Tuesday Blitz March 21 Late 2023"]
[White "Manukyan, Sargis V."]
[Black "Adewumi, Tanitoluwa"]
[WhiteFideId "13303465"]
[BlackFideId "30966396"]
[WhiteElo "2236"]
[BlackElo "2759"]
[Result "0-1"]
[Round "09"]
[TimeControl "180+2"]
[Date "2023.03.21"]
[WhiteClock "0:00:04"]
[BlackClock "0:00:17"]

1. d4 {[%clk 0:02:04]}  Nf6 {[%clk 0:02:59]} 2. c4 {[%clk 0:02:02]}  e6 {[%clk 0:02:59]} 3. Nc3 {[%clk 0:02:02]}  Bb4 {[%clk 0:02:59]} 4. Bd2 {[%clk 0:02:02]}  O-O {[%clk 0:02:59]} 5. Nf3 {[%clk 0:02:00]}  b6 {[%clk 0:02:59]} 6. e3 {[%clk 0:02:00]}  Bb7 {[%clk 0:02:59]} 7. Bd3 {[%clk 0:02:01]}  d6 {[%clk 0:02:59]} 8. O-O {[%clk 0:02:00]}  Nbd7 {[%clk 0:03:00]} 9. Qc2 {[%clk 0:01:59]}  Re8 {[%clk 0:02:58]} 10. e4 {[%clk 0:01:58]}  e5 {[%clk 0:02:49]} 11. d5 {[%clk 0:01:55]}  Nc5 {[%clk 0:02:49]} 12. a3 {[%clk 0:01:44]}  Bxc3 {[%clk 0:02:49]} 13. Bxc3 {[%clk 0:01:44]}  Bc8 {[%clk 0:02:44]} 14. h3 {[%clk 0:01:40]}  a5 {[%clk 0:02:44]} 15. b4 {[%clk 0:01:38]}  axb4 {[%clk 0:02:44]} 16. axb4 {[%clk 0:01:39]}  Rxa1 {[%clk 0:02:44]} 17. Rxa1 {[%clk 0:01:38]}  Nxd3 {[%clk 0:02:44]} 18. Qxd3 {[%clk 0:01:38]}  Nh5 {[%clk 0:02:44]} 19. Bd2 {[%clk 0:01:33]}  Qf6 {[%clk 0:02:43]} 20. Ra7 {[%clk 0:01:29]}  Qe7 {[%clk 0:02:05]} 21. Bg5 {[%clk 0:01:26]}  f6 {[%clk 0:02:00]} 22. Be3 {[%clk 0:01:25]}  f5 {[%clk 0:01:57]} 23. Bxb6 {[%clk 0:01:04]}  Nf4 {[%clk 0:01:42]} 24. Qe3 {[%clk 0:01:00]}  fxe4 {[%clk 0:01:37]} 25. Rxc7 {[%clk 0:00:45]}  Qf6 {[%clk 0:01:30]} 26. Qxe4 {[%clk 0:00:42]}  Bf5 {[%clk 0:01:29]} 27. Qe3 {[%clk 0:00:30]}  Qg6 {[%clk 0:01:24]} 28. Nh4 {[%clk 0:00:28]}  Qg5 {[%clk 0:01:23]} 29. g3 {[%clk 0:00:26]}  Nxh3+ {[%clk 0:01:05]} 30. Kh2 {[%clk 0:00:26]}  Qh5 {[%clk 0:00:57]} 31. Qf3 {[%clk 0:00:22]}  Bg4 {[%clk 0:00:57]} 32. Qg2 {[%clk 0:00:16]}  e4 {[%clk 0:00:55]} 33. Be3 {[%clk 0:00:14]}  g5 {[%clk 0:00:53]} 34. c5 {[%clk 0:00:03]}  gxh4 {[%clk 0:00:53]} 35. gxh4 {[%clk 0:00:03]}  Qxh4 {[%clk 0:00:23]} 36. Qg3 {[%clk 0:00:04]}  Qh5 {[%clk 0:00:22]} 37. cxd6 {[%clk 0:00:03]}  Nf4+ {[%clk 0:00:18]} 38. Kg1 {[%clk 0:00:04]}  Ne2+ {[%clk 0:00:18]} 39. Kg2 {[%clk 0:00:04]}  Nxg3 {[%clk 0:00:18]} 40. Kxg3 {[%clk 0:00:04]}  Bf3 {[%clk 0:00:16]} 41. d7 {[%clk 0:00:03]}  Qg4+ {[%clk 0:00:17]} 42. Kh2 {[%clk 0:00:04]}  Qg2# {[%clk 0:00:17]} 0-1


[Site "https://www.chess.com"]

[Event "Titled Tuesday Blitz March 21 Late 2023"]
[White "Mendez Fortes, Eduardo Jesus"]
[Black "Postny, Evgeny"]
[WhiteFideId "3502376"]
[BlackFideId "2804344"]
[WhiteElo "2307"]
[BlackElo "2509"]
[Result "0-1"]
[Round "09"]
[TimeControl "180+2"]
[Date "2023.03.21"]
[WhiteClock "0:00:17"]
[BlackClock "0:00:03"]

1. e4 {[%clk 0:03:00]}  c5 {[%clk 0:02:56]} 2. Nf3 {[%clk 0:03:01]}  d6 {[%clk 0:02:54]} 3. d4 {[%clk 0:03:01]}  cxd4 {[%clk 0:02:55]} 4. Nxd4 {[%clk 0:03:02]}  Nf6 {[%clk 0:02:55]} 5. Nc3 {[%clk 0:03:03]}  Nc6 {[%clk 0:02:55]} 6. Bg5 {[%clk 0:03:03]}  Bd7 {[%clk 0:02:54]} 7. Qd2 {[%clk 0:03:02]}  Qa5 {[%clk 0:02:53]} 8. Nb3 {[%clk 0:02:55]}  Qb6 {[%clk 0:02:45]} 9. O-O-O {[%clk 0:02:54]}  e6 {[%clk 0:02:44]} 10. f4 {[%clk 0:02:52]}  h6 {[%clk 0:02:42]} 11. Bh4 {[%clk 0:02:50]}  Ng4 {[%clk 0:02:32]} 12. Be2 {[%clk 0:02:31]}  Nf2 {[%clk 0:02:03]} 13. Na4 {[%clk 0:02:30]}  Qb4 {[%clk 0:02:03]} 14. Qxb4 {[%clk 0:01:57]}  Nxb4 {[%clk 0:02:04]} 15. Bxf2 {[%clk 0:01:56]}  Bxa4 {[%clk 0:02:03]} 16. Rd4 {[%clk 0:01:48]}  Bxb3 {[%clk 0:01:54]} 17. Bb5+ {[%clk 0:01:43]}  Nc6 {[%clk 0:01:50]} 18. axb3 {[%clk 0:01:42]}  a6 {[%clk 0:01:42]} 19. Bxc6+ {[%clk 0:01:40]}  bxc6 {[%clk 0:01:43]} 20. Ra4 {[%clk 0:01:40]}  g5 {[%clk 0:01:33]} 21. g3 {[%clk 0:01:39]}  gxf4 {[%clk 0:01:32]} 22. gxf4 {[%clk 0:01:40]}  Rg8 {[%clk 0:01:32]} 23. Bg3 {[%clk 0:01:38]}  d5 {[%clk 0:01:30]} 24. exd5 {[%clk 0:01:38]}  cxd5 {[%clk 0:01:29]} 25. Kd2 {[%clk 0:01:38]}  Bd6 {[%clk 0:01:21]} 26. Rha1 {[%clk 0:01:37]}  a5 {[%clk 0:01:20]} 27. Ke3 {[%clk 0:01:35]}  Rc8 {[%clk 0:00:48]} 28. Rxa5 {[%clk 0:01:35]}  Ke7 {[%clk 0:00:47]} 29. Bh4+ {[%clk 0:01:32]}  Kf8 {[%clk 0:00:42]} 30. Bf6 {[%clk 0:01:22]}  Rg6 {[%clk 0:00:24]} 31. Ra8 {[%clk 0:01:14]}  Bxf4+ {[%clk 0:00:20]} 32. Kd3 {[%clk 0:00:37]}  Re8 {[%clk 0:00:18]} 33. Bd4 {[%clk 0:00:31]}  Rxa8 {[%clk 0:00:14]} 34. Rxa8+ {[%clk 0:00:31]}  Ke7 {[%clk 0:00:15]} 35. Ra7+ {[%clk 0:00:31]}  Ke8 {[%clk 0:00:13]} 36. Bc5 {[%clk 0:00:29]}  e5 {[%clk 0:00:11]} 37. Re7+ {[%clk 0:00:26]}  Kd8 {[%clk 0:00:11]} 38. Rxf7 {[%clk 0:00:27]}  Bxh2 {[%clk 0:00:09]} 39. b4 {[%clk 0:00:26]}  Rg3+ {[%clk 0:00:08]} 40. Ke2 {[%clk 0:00:26]}  Rg2+ {[%clk 0:00:06]} 41. Kd1 {[%clk 0:00:26]}  Bg1 {[%clk 0:00:05]} 42. Rf5 {[%clk 0:00:21]}  Bxc5 {[%clk 0:00:04]} 43. bxc5 {[%clk 0:00:22]}  Rg1+ {[%clk 0:00:03]} 44. Kd2 {[%clk 0:00:22]}  Rg2+ {[%clk 0:00:03]} 45. Kc3 {[%clk 0:00:23]}  d4+ {[%clk 0:00:04]} 46. Kd3 {[%clk 0:00:23]}  Rg3+ {[%clk 0:00:04]} 47. Kc4 {[%clk 0:00:23]}  Re3 {[%clk 0:00:04]} 48. Rf7 {[%clk 0:00:19]}  Re2 {[%clk 0:00:03]} 49. Kd5 {[%clk 0:00:17]}  Rxc2 {[%clk 0:00:03]} 0-1


[Site "https://www.chess.com"]

[Event "Titled Tuesday Blitz March 21 Late 2023"]
[White "Santos Ruiz, Miguel"]
[Black "The_Sherman_Variation"]
[WhiteFideId "22291482"]
[WhiteElo "2504"]
[BlackElo "2565"]
[Result "1-0"]
[Round "09"]
[TimeControl "180+2"]
[Date "2023.03.21"]
[WhiteClock "0:01:28"]
[BlackClock "0:00:19"]

1. e4 {[%clk 0:03:00]}  b6 {[%clk 0:02:56]} 2. d4 {[%clk 0:03:01]}  Bb7 {[%clk 0:02:56]} 3. Bd3 {[%clk 0:03:01]}  g6 {[%clk 0:02:56]} 4. Nf3 {[%clk 0:03:01]}  Bg7 {[%clk 0:02:56]} 5. O-O {[%clk 0:03:01]}  d6 {[%clk 0:02:57]} 6. Re1 {[%clk 0:03:01]}  Nf6 {[%clk 0:02:56]} 7. c4 {[%clk 0:02:59]}  O-O {[%clk 0:02:55]} 8. Nc3 {[%clk 0:02:59]}  Nbd7 {[%clk 0:02:55]} 9. h3 {[%clk 0:02:57]}  e5 {[%clk 0:02:55]} 10. d5 {[%clk 0:02:57]}  h6 {[%clk 0:02:51]} 11. g3 {[%clk 0:02:56]}  Nh7 {[%clk 0:02:49]} 12. Nh4 {[%clk 0:02:56]}  a5 {[%clk 0:02:41]} 13. Bc2 {[%clk 0:02:49]}  Nc5 {[%clk 0:02:33]} 14. Be3 {[%clk 0:02:49]}  Bc8 {[%clk 0:02:33]} 15. Kh2 {[%clk 0:02:44]}  Ng5 {[%clk 0:02:32]} 16. f4 {[%clk 0:02:30]}  Nxh3 {[%clk 0:02:22]} 17. f5 {[%clk 0:02:29]}  Ng5 {[%clk 0:02:14]} 18. Rf1 {[%clk 0:02:21]}  Kh7 {[%clk 0:02:03]} 19. Nf3 {[%clk 0:02:14]}  Nxf3+ {[%clk 0:02:00]} 20. Qxf3 {[%clk 0:02:14]}  Bf6 {[%clk 0:01:48]} 21. Kg2 {[%clk 0:02:08]}  g5 {[%clk 0:01:42]} 22. Rh1 {[%clk 0:02:06]}  Kg7 {[%clk 0:01:41]} 23. Nd1 {[%clk 0:01:52]}  a4 {[%clk 0:01:30]} 24. Nf2 {[%clk 0:01:51]}  Ba6 {[%clk 0:01:19]} 25. Ng4 {[%clk 0:01:51]}  Rh8 {[%clk 0:01:19]} 26. Rh5 {[%clk 0:01:51]}  Bxc4 {[%clk 0:00:45]} 27. Rah1 {[%clk 0:01:51]}  Nd7 {[%clk 0:00:45]} 28. Nxh6 {[%clk 0:01:46]}  Bxa2 {[%clk 0:00:43]} 29. Qg4 {[%clk 0:01:44]}  Kf8 {[%clk 0:00:32]} 30. Nxf7 {[%clk 0:01:28]}  Kxf7 {[%clk 0:00:31]} 31. Rxh8 {[%clk 0:01:27]}  Bxh8 {[%clk 0:00:24]} 32. Qh5+ {[%clk 0:01:28]}  Ke7 {[%clk 0:00:19]} 33. Qh7+ {[%clk 0:01:28]}  Kf6 {[%clk 0:00:19]} 34. Qg6+ {[%clk 0:01:28]}  Ke7 {[%clk 0:00:19]} 35. Rh7+ {[%clk 0:01:28]} 1-0


[Site "https://www.chess.com"]